bitfinex-derivatives/quotes_BTCF0:USTF0_20250629
["timestamp","ask_amount","ask_price","bid_price","bid_amount"]
[1751236035693,0.53128347,108070.0,108060.0,0.58706838]
[1751236035893,0.53128347,108070.0,108060.0,0.79075183]
[1751236037406,0.53128347,108070.0,108060.0,0.58706838]
[1751236037607,0.53128347,108070.0,108060.0,0.79075183]
[1751236039708,0.53128347,108070.0,108060.0,0.64271983]
[1751236040608,0.53128347,108070.0,108060.0,0.43903638]
[1751236041006,0.53128347,108070.0,108060.0,0.64271983]
[1751236041709,0.38326517,108070.0,108060.0,0.79075163]
[1751236041913,0.2220018,108090.0,108070.0,0.1850202]
[1751236042111,0.2220018,108090.0,108080.0,1.82132345]
[1751236042303,0.2220018,108090.0,108080.0,1.82136346]
[1751236042608,0.2220018,108090.0,108080.0,1.96936776]
[1751236043000,0.2230018,108090.0,108080.0,1.96936776]
[1751236044002,0.2230018,108090.0,108080.0,1.02152346]
[1751236044412,0.2230018,108090.0,108080.0,1.82048346]
[1751236044612,0.2230018,108090.0,108080.0,1.96848776]
[1751236044815,0.2220018,108090.0,108080.0,1.96848776]
[1751236045010,0.2220018,108090.0,108080.0,1.61680001]
[1751236045315,0.2220018,108090.0,108080.0,1.82048346]
[1751236047309,0.2220018,108090.0,108080.0,0.81784001]
[1751236047607,0.42568525,108090.0,108080.0,1.55528001]
[1751236047912,0.45858525,108090.0,108080.0,1.19448001]
[1751236048110,0.52358525,108090.0,108080.0,1.19448001]
[1751236048411,0.52358525,108090.0,108080.0,1.21150562]
[1751236048611,0.7272687,108090.0,108080.0,0.01706562]
[1751236048914,1.37442069,108090.0,108080.0,4.001e-05]
[1751236049116,0.148018,108070.0,108060.0,1.01849436]
[1751236049413,0.35170145,108070.0,108060.0,1.01849436]
[1751236049613,0.44720145,108070.0,108060.0,1.01849436]
[1751236050713,0.44720145,108070.0,108060.0,1.01845436]
[1751236052511,0.243518,108070.0,108060.0,1.01845436]
[1751236052911,0.243518,108070.0,108060.0,1.22213781]
[1751236053317,0.243518,108070.0,108060.0,1.01845436]
[1751236053718,0.44720145,108070.0,108060.0,1.01845436]
[1751236054307,0.243518,108070.0,108060.0,1.01845436]
[1751236054712,0.243518,108070.0,108060.0,1.16648606]
[1751236054918,0.243518,108070.0,108060.0,1.01845436]
[1751236055826,0.243518,108070.0,108060.0,1.00001139]
[1751236056521,0.44720145,108070.0,108060.0,1.00001139]
[1751236057223,0.243518,108070.0,108060.0,1.14804309]
[1751236057420,0.243518,108070.0,108060.0,1.38302654]
[1751236057814,0.243518,108070.0,108060.0,1.19833983]
[1751236058019,0.243518,108070.0,108060.0,1.23113983]
[1751236058220,0.243518,108070.0,108060.0,1.41582654]
[1751236058417,0.243518,108070.0,108060.0,1.26779484]
[1751236058612,0.243518,108070.0,108060.0,1.41582654]
[1751236059025,0.180218,108070.0,108060.0,1.41582654]
[1751236059324,0.180218,108070.0,108060.0,1.44582654]
[1751236059718,0.148018,108070.0,108060.0,1.44582654]
[1751236063931,0.148018,108070.0,108060.0,1.24214309]
[1751236064133,0.148018,108070.0,108060.0,1.44582654]
[1751236064329,0.148018,108070.0,108060.0,0.81290654]
[1751236064532,0.35170145,108070.0,108060.0,0.99489139]
[1751236064827,0.35170145,108070.0,108060.0,1.34660654]
[1751236064828,0.209918,108070.0,108060.0,1.34660654]
[1751236065027,0.148018,108070.0,108060.0,1.34660654]
[1751236065330,0.148018,108070.0,108060.0,1.08779139]
[1751236065633,0.148018,108070.0,108060.0,1.29147484]
[1751236066932,0.148018,108070.0,108060.0,1.43950654]
[1751236067439,0.148018,108070.0,108060.0,1.23582309]
[1751236067732,0.148018,108070.0,108060.0,1.43950654]
[1751236068532,0.148018,108070.0,108060.0,1.60762654]
[1751236073938,0.148018,108070.0,108060.0,0.60802309]
[1751236074235,0.148018,108070.0,108060.0,1.60438654]
[1751236074838,0.148018,108070.0,108060.0,1.56773153]
[1751236075240,0.148018,108070.0,108060.0,1.60438654]
[1751236075435,0.283918,108080.0,108070.0,0.148018]
[1751236075636,0.252418,108080.0,108070.0,0.41490145]
[1751236075934,0.252418,108080.0,108070.0,0.26688345]
[1751236076137,0.252418,108080.0,108070.0,0.0632]
[1751236076736,0.252418,108080.0,108070.0,0.211218]
[1751236077938,0.252418,108080.0,108070.0,0.41490145]
[1751236078841,0.2154149,108080.0,108070.0,0.572018]
[1751236079141,0.2154149,108080.0,108070.0,0.60867301]
[1751236080440,0.1850149,108080.0,108070.0,0.60867301]
[1751236080642,0.1850149,108080.0,108070.0,0.81235646]
[1751236081540,0.1850149,108080.0,108070.0,0.60867301]
[1751236082342,0.1850149,108080.0,108070.0,0.81235646]
[1751236083242,0.2503149,108080.0,108070.0,0.77570145]
[1751236083542,0.2503149,108080.0,108070.0,0.572018]
[1751236084541,0.2503149,108080.0,108070.0,0.77570145]
[1751236085041,0.45399835,108080.0,108070.0,1.17984]
[1751236085233,0.5877789,108100.0,108090.0,0.1479906]
[1751236085439,0.64329528,108100.0,108090.0,0.62496]
[1751236085646,0.91077873,108100.0,108090.0,0.62496]
[1751236085945,0.85526235,108100.0,108090.0,0.62496]
[1751236086643,0.6515789,108100.0,108090.0,0.7729506]
[1751236086843,0.85526235,108100.0,108090.0,0.7729506]
[1751236087540,0.49446235,108100.0,108090.0,1.1337506]
[1751236087741,0.2907789,108100.0,108090.0,1.33743405]
[1751236087935,0.2907789,108100.0,108090.0,1.40133405]
[1751236088341,0.2907789,108100.0,108090.0,1.1976506]
[1751236090347,0.1479906,108090.0,108080.0,0.41398769]
[1751236090544,0.1800906,108090.0,108080.0,1.18767199]
[1751236090744,0.1479906,108090.0,108080.0,1.42185544]
[1751236090945,0.1479906,108090.0,108080.0,1.25127199]
[1751236091146,0.1479906,108090.0,108080.0,1.45495544]
[1751236091650,0.1479906,108090.0,108080.0,1.61855544]
[1751236092349,0.1479906,108090.0,108080.0,1.67365342]
[1751236092551,0.1479906,108090.0,108080.0,1.67501342]
[1751236092738,0.1479906,108090.0,108080.0,1.47132997]
[1751236092942,0.1479906,108090.0,108080.0,1.61991544]
[1751236093142,0.1479906,108090.0,108080.0,1.41623199]
[1751236093342,0.1479906,108090.0,108080.0,1.38313199]
[1751236093554,0.38277405,108090.0,108080.0,1.23512769]
[1751236093739,0.1790906,108090.0,108080.0,1.23512769]
[1751236093942,0.2428906,108090.0,108080.0,1.23512769]
[1751236094753,0.1479906,108090.0,108080.0,1.62381514]
[1751236094950,0.1479906,108090.0,108080.0,1.69271504]
[1751236095248,0.1479906,108090.0,108080.0,1.65606003]
[1751236095850,0.1479906,108090.0,108080.0,1.45237658]
[1751236096050,0.1479906,108090.0,108080.0,1.65606003]
[1751236096639,0.35167405,108090.0,108080.0,0.52533698]
[1751236096846,0.2454906,108090.0,108080.0,1.35550043]
[1751236097045,0.1810906,108090.0,108080.0,1.35550043]
[1751236097245,0.1479906,108090.0,108080.0,1.45130043]
[1751236097545,0.1479906,108090.0,108080.0,0.82482043]
[1751236097751,0.1479906,108090.0,108080.0,1.65199544]
[1751236102349,0.1479906,108090.0,108080.0,1.44831199]
[1751236102548,0.1479906,108090.0,108080.0,1.65199544]
[1751236103452,0.1801906,108090.0,108080.0,1.41641199]
[1751236103656,0.2120906,108090.0,108080.0,1.41641199]
[1751236104654,0.2120906,108090.0,108080.0,1.26840769]
[1751236104853,0.2120906,108090.0,108080.0,1.41641199]
[1751236105752,0.2120906,108090.0,108080.0,0.41398769]
[1751236105753,0.41577405,108090.0,108080.0,0.41398769]
[1751236106058,0.41577405,108090.0,108080.0,1.03846769]
[1751236106955,0.41577405,108090.0,108080.0,1.03802769]
[1751236107155,0.2120906,108090.0,108080.0,1.03802769]
[1751236107355,0.41577405,108090.0,108080.0,1.03802769]
[1751236107755,0.41577405,108090.0,108080.0,0.39745501]
[1751236107951,0.2120906,108090.0,108080.0,1.02069501]
[1751236108255,0.41577405,108090.0,108080.0,1.02069501]
[1751236108957,0.41577405,108090.0,108080.0,0.98404]
[1751236109552,0.41577405,108090.0,108080.0,0.98408]
[1751236112057,0.41577405,108090.0,108080.0,0.62328]
[1751236112257,0.1480043,108080.0,108070.0,0.41410189]
[1751236112460,0.80928775,108080.0,108070.0,0.03665501]
[1751236113059,0.99434375,108080.0,108070.0,0.03665501]
[1751236113458,0.148018,108070.0,108060.0,1.16792581]
[1751236113760,0.209918,108070.0,108060.0,1.16792581]
[1751236114350,0.209918,108070.0,108060.0,1.33495425]
[1751236114555,0.179018,108070.0,108060.0,1.33495425]
[1751236114755,0.148018,108070.0,108060.0,1.42975425]
[1751236116257,0.148018,108070.0,108060.0,1.2260708]
[1751236117457,0.148018,108070.0,108060.0,1.42975425]
[1751236118263,0.148018,108070.0,108060.0,0.80731425]
[1751236118450,0.148018,108070.0,108060.0,1.42911425]
[1751236119257,0.148018,108070.0,108060.0,1.2254308]
[1751236119663,0.148018,108070.0,108060.0,1.42911425]
[1751236121858,0.148018,108070.0,108060.0,1.2254308]
[1751236122055,0.148018,108070.0,108060.0,1.42911425]
[1751236122257,0.148018,108070.0,108060.0,1.2254308]
[1751236122662,0.148018,108070.0,108060.0,1.42911425]
[1751236124061,0.148018,108070.0,108060.0,1.26208581]
[1751236124259,0.148018,108070.0,108060.0,1.46576926]
[1751236126366,0.2901246,108080.0,108070.0,0.148018]
[1751236126566,0.2590246,108080.0,108070.0,0.74310145]
[1751236126763,0.2590246,108080.0,108070.0,0.571418]
[1751236127068,0.2590246,108080.0,108070.0,0.77510145]
[1751236127975,0.2220207,108080.0,108070.0,0.77510145]
[1751236129667,0.2220207,108080.0,108070.0,0.571418]
[1751236129971,0.34469235,108080.0,108060.0,0.63307959]
[1751236130166,0.88479665,108080.0,108070.0,0.61868]
[1751236130369,0.148018,108070.0,108060.0,0.51755299]
[1751236130571,0.178018,108070.0,108060.0,1.28410469]
[1751236130771,0.178018,108070.0,108060.0,1.22900671]
[1751236131269,0.178018,108070.0,108060.0,1.28410469]
[1751236131467,0.148018,108070.0,108060.0,1.51808814]
[1751236137573,0.148018,108070.0,108060.0,1.31440469]
[1751236137763,0.148018,108070.0,108060.0,1.51808814]
[1751236138268,0.148018,108070.0,108060.0,1.48143313]
[1751236139270,0.148018,108070.0,108060.0,1.27774968]
[1751236139471,0.148018,108070.0,108060.0,1.48143313]
[1751236144176,0.148018,108070.0,108060.0,1.42633515]
[1751236145375,0.148018,108070.0,108060.0,1.4814847]
[1751236146175,0.2220203,108080.0,108070.0,0.148018]
[1751236146370,0.2220203,108080.0,108070.0,0.81116764]
[1751236146764,0.2220203,108080.0,108070.0,0.97016764]
[1751236149572,0.2220203,108080.0,108070.0,1.02531719]
[1751236149975,0.2220203,108080.0,108070.0,0.82163374]
[1751236150275,0.2220203,108080.0,108070.0,1.02531719]
[1751236151575,0.1480153,108080.0,108070.0,1.02531719]
[1751236151776,0.2220219,108080.0,108070.0,1.02531719]
[1751236151973,0.185018,108080.0,108070.0,1.02531719]
[1751236152180,0.3153981,108090.0,108080.0,0.1480043]
[1751236152378,0.3153981,108090.0,108080.0,1.39319228]
[1751236152980,0.3153981,108090.0,108080.0,1.45629228]
[1751236153178,0.3153981,108090.0,108080.0,1.25260883]
[1751236153579,0.3153981,108090.0,108080.0,1.45629228]
[1751236153783,0.3153981,108090.0,108080.0,1.25260883]
[1751236154282,0.3153981,108090.0,108080.0,1.21980883]
[1751236154475,0.3153981,108090.0,108080.0,1.21708215]
[1751236155280,0.3153981,108090.0,108080.0,1.1619326]
[1751236157182,0.3153981,108090.0,108080.0,1.15273143]
[1751236157578,0.3153981,108090.0,108080.0,1.35641488]
[1751236157782,0.3153981,108090.0,108080.0,1.38651488]
[1751236158084,0.3153981,108090.0,108080.0,1.18283143]
[1751236158385,0.2839981,108090.0,108080.0,1.38651488]
[1751236159184,0.2219981,108090.0,108080.0,1.38651488]
[1751236159384,0.2219981,108090.0,108080.0,1.41801488]
[1751236160391,0.2219981,108090.0,108080.0,1.26022395]
[1751236160584,0.2219981,108090.0,108080.0,1.4639074]
[1751236160782,0.42568155,108090.0,108080.0,0.02756713]
[1751236160987,0.48718155,108090.0,108080.0,0.64380713]
[1751236161386,0.2834981,108090.0,108080.0,0.64380713]
[1751236162191,0.2834981,108090.0,108080.0,0.79181143]
[1751236162492,0.2834981,108090.0,108080.0,1.15261143]
[1751236162794,0.2834981,108090.0,108080.0,1.35629488]
[1751236162986,0.2834981,108090.0,108080.0,1.15261143]
[1751236163186,0.2834981,108090.0,108080.0,1.18937973]
[1751236163387,0.2834981,108090.0,108080.0,1.39306318]
[1751236163584,0.2834981,108090.0,108080.0,1.35629488]
[1751236164196,0.2834981,108090.0,108080.0,1.15261143]
[1751236164493,0.2834981,108090.0,108080.0,1.35629488]
[1751236164685,0.2834981,108090.0,108080.0,1.15261143]
[1751236166094,0.2834981,108090.0,108080.0,0.6530083]
[1751236166291,0.2834981,108090.0,108080.0,0.0367683]
[1751236166494,0.48718155,108090.0,108080.0,0.6529683]
[1751236167195,0.48718155,108090.0,108080.0,0.6805452]
[1751236167795,0.51848155,108090.0,108080.0,0.6805452]
[1751236168295,0.51848155,108090.0,108080.0,0.8285495]
[1751236168483,0.51848155,108090.0,108080.0,0.6805452]
[1751236169697,0.3147981,108090.0,108080.0,0.6805452]
[1751236169994,0.51848155,108090.0,108080.0,0.6805452]
[1751236170386,0.51848155,108090.0,108080.0,0.6437769]
[1751236170794,0.3147981,108090.0,108080.0,0.7917812]
[1751236171496,0.3147981,108090.0,108080.0,0.99546465]
[1751236172899,0.3147981,108090.0,108080.0,1.1525812]
[1751236173091,0.2834981,108090.0,108080.0,1.39303295]
[1751236173294,0.2834981,108090.0,108080.0,1.49023295]
[1751236173593,0.1480013,108090.0,108080.0,1.2865495]
[1751236173792,0.1480013,108090.0,108080.0,1.46265605]
[1751236173993,0.1480013,108090.0,108080.0,1.2589726]
[1751236174192,0.1480013,108090.0,108080.0,1.46265605]
[1751236174693,0.1480013,108090.0,108080.0,1.5178056]
[1751236175198,0.1480013,108090.0,108080.0,1.31412215]
[1751236175400,0.1480013,108090.0,108080.0,1.5178056]
[1751236175599,0.1480013,108090.0,108080.0,1.31412215]
[1751236175901,0.1480013,108090.0,108080.0,1.4810373]
[1751236177500,0.1480013,108090.0,108080.0,1.27735385]
[1751236177702,0.1480013,108090.0,108080.0,1.4810373]
[1751236178090,0.1480013,108090.0,108080.0,1.27735385]
[1751236178293,0.1480013,108090.0,108080.0,1.4810373]
[1751236178690,0.1480013,108090.0,108080.0,1.27735385]
[1751236178893,0.1480013,108090.0,108080.0,1.4810373]
[1751236182905,0.1480013,108090.0,108080.0,1.27735385]
[1751236183296,0.1480013,108090.0,108080.0,1.4810373]
[1751236184001,0.1480013,108090.0,108080.0,1.51777053]
[1751236184198,0.1480013,108090.0,108080.0,1.27735385]
[1751236184406,0.1793013,108090.0,108080.0,1.4810373]
[1751236186009,0.1793013,108090.0,108080.0,1.51777068]
[1751236186403,0.1793013,108090.0,108080.0,1.31408723]
[1751236186603,0.1793013,108090.0,108080.0,1.51777068]
[1751236186803,0.38298475,108090.0,108080.0,0.69788723]
[1751236187110,0.88707255,108090.0,108080.0,0.71284509]
[1751236187302,0.91797255,108090.0,108080.0,0.71284509]
[1751236187703,0.55717255,108090.0,108080.0,0.86084939]
[1751236188907,0.55717255,108090.0,108080.0,0.86108939]
[1751236189909,0.3534891,108090.0,108080.0,0.86108939]
[1751236190209,0.55717255,108090.0,108080.0,0.86108939]
[1751236191109,0.55717255,108090.0,108080.0,0.83349799]
[1751236191808,0.3534891,108090.0,108080.0,0.83349799]
[1751236192207,0.3534891,108090.0,108080.0,1.03718144]
[1751236192811,0.3164886,108090.0,108080.0,1.03718144]
[1751236193010,0.3164886,108090.0,108080.0,1.00962329]
[1751236193612,0.3164886,108090.0,108080.0,1.04162329]
[1751236194113,0.3164886,108090.0,108080.0,1.09677284]
[1751236194714,0.3164886,108090.0,108080.0,1.15817284]
[1751236195713,0.2855886,108090.0,108080.0,1.15817284]
[1751236196617,0.2532886,108090.0,108080.0,1.15817284]
[1751236197115,0.2219886,108090.0,108080.0,1.15817284]
[1751236197415,0.2219886,108090.0,108080.0,1.10302329]
[1751236197610,0.2219886,108090.0,108080.0,1.46382329]
[1751236197912,0.2219886,108090.0,108080.0,1.51897284]
[1751236198415,0.2219886,108090.0,108080.0,0.89777284]
[1751236198710,0.2219886,108090.0,108080.0,0.95060939]
[1751236198914,0.2219886,108090.0,108080.0,1.31140939]
[1751236199208,0.2219886,108090.0,108080.0,1.51509284]
[1751236199413,0.2527886,108090.0,108080.0,1.51509284]
[1751236200513,0.2219886,108090.0,108080.0,1.51509284]
[1751236201310,0.1849889,108090.0,108080.0,1.4783573]
[1751236201512,0.1849889,108090.0,108080.0,1.51510865]
[1751236201711,0.1849889,108090.0,108080.0,1.3114252]
[1751236202109,0.005,108100.0,108090.0,0.1479906]
[1751236202309,0.1529769,108100.0,108090.0,0.83413793]
[1751236202517,0.1529769,108100.0,108090.0,0.66720583]
[1751236202710,0.1529769,108100.0,108090.0,0.6947915]
[1751236203511,0.1529769,108100.0,108090.0,0.89847495]
[1751236203711,0.1529769,108100.0,108090.0,0.8617236]
[1751236203906,0.1529769,108100.0,108090.0,0.65804015]
[1751236204313,0.1529769,108100.0,108090.0,0.66708613]
[1751236204509,0.1529769,108100.0,108090.0,0.87076958]
[1751236205015,0.1529769,108100.0,108090.0,0.90750381]
[1751236205211,0.1529769,108100.0,108090.0,0.69477438]
[1751236205413,0.1529769,108100.0,108090.0,0.89845783]
[1751236205918,0.1529769,108100.0,108090.0,0.8617236]
[1751236206411,0.1529769,108100.0,108090.0,0.66276871]
[1751236206612,0.1846769,108100.0,108090.0,0.86645216]
[1751236206818,0.2168769,108100.0,108090.0,0.80435216]
[1751236207014,0.2500769,108100.0,108090.0,0.80435216]
[1751236207412,0.2500769,108100.0,108090.0,0.60066871]
[1751236207715,0.2500769,108100.0,108090.0,0.80435216]
[1751236207915,0.1851769,108100.0,108090.0,0.59554005]
[1751236208119,0.1851769,108100.0,108090.0,0.7992235]
[1751236208315,0.1851769,108100.0,108090.0,0.59554005]
[1751236208521,0.1851769,108100.0,108090.0,0.7992235]
[1751236209317,0.1851769,108100.0,108090.0,0.59554005]
[1751236209518,0.1851769,108100.0,108090.0,0.7992235]
[1751236209718,0.1851769,108100.0,108090.0,0.59554005]
[1751236210021,0.1851769,108100.0,108090.0,0.651233]
[1751236210220,0.2467769,108100.0,108090.0,0.59554025]
[1751236210425,0.2467769,108100.0,108090.0,0.7992237]
[1751236211816,0.2467769,108100.0,108090.0,0.59554025]
[1751236212018,0.2467769,108100.0,108090.0,0.7992237]
[1751236212223,0.2467769,108100.0,108090.0,0.59554025]
[1751236212419,0.2467769,108100.0,108090.0,0.7992237]
[1751236214018,0.2467769,108100.0,108090.0,0.4384237]
[1751236214224,0.2467769,108100.0,108090.0,0.7992237]
[1751236214619,0.2467769,108100.0,108090.0,0.7522237]
[1751236216125,0.2467769,108100.0,108090.0,0.54854025]
[1751236217125,0.2467769,108100.0,108090.0,0.7522237]
[1751236218330,0.1851769,108100.0,108090.0,0.7522237]
[1751236218530,0.1851769,108100.0,108090.0,0.8170237]
[1751236219331,0.1851769,108100.0,108090.0,0.61334025]
[1751236219828,0.38886035,108100.0,108090.0,0.36894955]
[1751236220133,0.81216035,108100.0,108090.0,0.66871098]
[1751236220831,0.81216035,108100.0,108090.0,0.03671098]
[1751236221030,0.81216035,108100.0,108090.0,0.66871098]
[1751236222219,0.81216035,108100.0,108090.0,0.62171098]
[1751236223034,0.1479906,108090.0,108080.0,0.75052066]
[1751236223330,0.1479906,108090.0,108080.0,1.58540411]
[1751236223527,0.1779906,108090.0,108080.0,1.38172066]
[1751236223735,0.1779906,108090.0,108080.0,1.34471976]
[1751236223929,0.1779906,108090.0,108080.0,1.51720321]
[1751236224325,0.1779906,108090.0,108080.0,1.31351976]
[1751236224522,0.1779906,108090.0,108080.0,1.44368475]
[1751236224926,0.1779906,108090.0,108080.0,1.51720321]
[1751236225633,0.1779906,108090.0,108080.0,1.27651886]
[1751236225831,0.44587405,108090.0,108080.0,0.43431846]
[1751236226134,0.1480043,108080.0,108070.0,1.06503846]
[1751236226334,0.2109043,108080.0,108070.0,1.21305646]
[1751236226524,0.41458775,108080.0,108070.0,1.21305646]
[1751236227025,0.41458775,108080.0,108070.0,0.43431846]
[1751236227230,0.41458775,108080.0,108070.0,1.21349646]
[1751236227737,0.41458775,108080.0,108070.0,1.06547846]
[1751236228037,0.41458775,108080.0,108070.0,1.06487846]
[1751236228437,0.41458775,108080.0,108070.0,0.99136]
[1751236228731,0.41458775,108080.0,108070.0,1.139378]
[1751236229032,0.41458775,108080.0,108070.0,0.99136]
[1751236230330,0.41458775,108080.0,108070.0,1.06487846]
[1751236231438,0.41458775,108080.0,108070.0,1.06443846]
[1751236232635,0.2109043,108080.0,108070.0,1.06443846]
[1751236232835,0.2419043,108080.0,108070.0,1.06443846]
[1751236233042,0.44558775,108080.0,108070.0,1.06443846]
[1751236233530,0.2419043,108080.0,108070.0,1.06443846]
[1751236233736,0.44558775,108080.0,108070.0,1.06443846]
[1751236234337,0.2419043,108080.0,108070.0,1.06443846]
[1751236234641,0.2419043,108080.0,108070.0,1.21245646]
[1751236234839,0.2419043,108080.0,108070.0,1.138938]
[1751236235043,0.44558775,108080.0,108070.0,1.138938]
[1751236235742,0.1792043,108080.0,108070.0,1.34262145]
[1751236235937,0.1480043,108080.0,108070.0,1.40692145]
[1751236236847,0.1480043,108080.0,108070.0,1.203238]
[1751236237038,0.1480043,108080.0,108070.0,1.40692145]
[1751236239548,0.1480043,108080.0,108070.0,1.203238]
[1751236239741,0.1480043,108080.0,108070.0,1.40692145]
[1751236240043,0.1480043,108080.0,108070.0,1.203238]
[1751236240241,0.1480043,108080.0,108070.0,1.25834328]
[1751236240538,0.1480043,108080.0,108070.0,1.40692145]
[1751236240743,0.1480043,108080.0,108070.0,1.46202673]
[1751236241344,0.1480043,108080.0,108070.0,1.25834328]
[1751236241544,0.1480043,108080.0,108070.0,1.46202673]
[1751236241747,0.1480043,108080.0,108070.0,1.25834328]
[1751236242146,0.1480043,108080.0,108070.0,1.46202673]
[1751236242343,0.1480043,108080.0,108070.0,1.62810673]
[1751236243142,0.1480043,108080.0,108070.0,0.62822328]
[1751236243448,0.1480043,108080.0,108070.0,1.42614328]
[1751236243650,0.1480043,108080.0,108070.0,1.62982673]
[1751236244544,0.1480043,108080.0,108070.0,1.42614328]
[1751236244750,0.1480043,108080.0,108070.0,1.62982673]
[1751236246854,0.1480043,108080.0,108070.0,1.57472145]
[1751236247250,0.2590022,108090.0,108080.0,0.1480043]
[1751236247445,0.1850011,108090.0,108080.0,0.83393024]
[1751236247952,0.1850011,108090.0,108080.0,0.80638775]
[1751236248246,0.1529856,108100.0,108090.0,0.1479906]
[1751236248551,0.1529856,108100.0,108090.0,1.43589212]
[1751236248942,0.1529856,108100.0,108090.0,1.23220867]
[1751236249148,0.1529856,108100.0,108090.0,1.43589212]
[1751236249353,0.1529856,108100.0,108090.0,1.23220867]
[1751236249853,0.1529856,108100.0,108090.0,1.43589212]
[1751236250053,0.1529856,108100.0,108090.0,1.36135405]
[1751236250648,0.1529856,108100.0,108090.0,1.1576706]
[1751236251042,0.1529856,108100.0,108090.0,1.36135405]
[1751236251246,0.1529856,108100.0,108090.0,1.1576706]
[1751236251446,0.1529856,108100.0,108090.0,1.36135405]
[1751236251646,0.1529856,108100.0,108090.0,1.1576706]
[1751236251856,0.1529856,108100.0,108090.0,1.36135405]
[1751236252248,0.1176856,108100.0,108090.0,1.39805051]
[1751236252949,0.1176856,108100.0,108090.0,1.43115051]
[1751236253149,0.1176856,108100.0,108090.0,1.22746706]
[1751236253349,0.1176856,108100.0,108090.0,1.43115051]
[1751236254957,0.1479768,108100.0,108090.0,1.54213651]
[1751236255149,0.1479768,108100.0,108090.0,1.50449306]
[1751236255454,0.1479768,108100.0,108090.0,1.76328179]
[1751236256448,0.1430793,108110.0,108100.0,0.1479769]
[1751236256449,0.1859633,108110.0,108100.0,0.1479769]
[1751236256645,0.1859633,108110.0,108100.0,0.84266149]
[1751236257147,0.0939,108130.0,108100.0,0.71173587]
[1751236257350,0.41723682,108140.0,108130.0,0.1479359]
[1751236257351,0.27833402,108140.0,108130.0,0.1479359]
[1751236257550,0.2228972,108140.0,108130.0,0.3608]
[1751236257754,0.42658065,108140.0,108130.0,1.02662]
[1751236257951,0.45808065,108140.0,108130.0,0.99392]
[1751236258151,0.42658065,108140.0,108130.0,0.99392]
[1751236258352,0.2228972,108140.0,108130.0,0.99392]
[1751236258548,0.2854972,108140.0,108130.0,1.02142468]
[1751236258852,0.49850504,108140.0,108130.0,0.02750468]
[1751236259249,0.49850504,108140.0,108130.0,0.63276]
[1751236259454,0.1479358,108130.0,108120.0,0.04455189]
[1751236259650,0.80821925,108130.0,108120.0,0.67739189]
[1751236260050,0.80821925,108130.0,108120.0,0.04455189]
[1751236260248,0.6045358,108130.0,108120.0,0.04455189]
[1751236260648,0.44741925,108130.0,108120.0,0.04455189]
[1751236260851,0.80821925,108130.0,108120.0,0.04455189]
[1751236261055,0.6045358,108130.0,108120.0,0.19250139]
[1751236261263,0.2437358,108130.0,108120.0,0.19250139]
[1751236261456,0.2437358,108130.0,108120.0,0.55330139]
[1751236261859,0.1802358,108130.0,108120.0,0.65010139]
[1751236262562,0.1802358,108130.0,108120.0,0.62259671]
[1751236262764,0.1802358,108130.0,108120.0,0.82628016]
[1751236263058,0.1479358,108130.0,108120.0,0.82628016]
[1751236263855,0.1479358,108130.0,108120.0,0.62259671]
[1751236264065,0.2105358,108130.0,108120.0,0.16499671]
[1751236265054,0.2105358,108130.0,108120.0,0.01704721]
[1751236265255,0.77501925,108130.0,108120.0,0.01704721]
[1751236265655,0.77501925,108130.0,108120.0,0.65048721]
[1751236265857,0.77501925,108130.0,108120.0,0.01704721]
[1751236266057,0.77501925,108130.0,108120.0,0.65044721]
[1751236266458,0.5713358,108130.0,108120.0,0.65044721]
[1751236266664,0.77501925,108130.0,108120.0,0.65044721]
[1751236267159,0.41421925,108130.0,108120.0,0.65044721]
[1751236267765,0.2105358,108130.0,108120.0,0.65036721]
[1751236268063,0.41421925,108130.0,108120.0,0.65036721]
[1751236268768,0.77501925,108130.0,108120.0,0.65036721]
[1751236272567,0.77501925,108130.0,108120.0,0.79831641]
[1751236272966,0.77501925,108130.0,108120.0,0.01704721]
[1751236273165,0.77501925,108130.0,108120.0,0.64816721]
[1751236274059,0.77501925,108130.0,108120.0,0.01704721]
[1751236274261,0.77501925,108130.0,108120.0,0.79575641]
[1751236274967,0.5713358,108130.0,108120.0,0.79575641]
[1751236275169,0.77501925,108130.0,108120.0,0.79575641]
[1751236275470,0.41421925,108130.0,108120.0,0.79575641]
[1751236275670,0.2105358,108130.0,108120.0,0.82865641]
[1751236275968,0.2105358,108130.0,108120.0,1.18945641]
[1751236276275,0.1805358,108130.0,108120.0,1.39313986]
[1751236276571,0.1805358,108130.0,108120.0,1.25275641]
[1751236276770,0.1805358,108130.0,108120.0,1.48394454]
[1751236279260,0.1805358,108130.0,108120.0,1.31695755]
[1751236279662,0.1805358,108130.0,108120.0,0.95615755]
[1751236279865,0.1805358,108130.0,108120.0,0.91946109]
[1751236279866,0.38421925,108130.0,108120.0,0.91946109]
[1751236280170,0.2125358,108130.0,108120.0,0.91946109]
[1751236280568,0.77701925,108130.0,108120.0,0.04455189]
[1751236280866,0.77701925,108130.0,108120.0,0.67491189]
[1751236281069,0.77701925,108130.0,108120.0,0.02750468]
[1751236281271,0.1479493,108120.0,108110.0,0.42500114]
[1751236281573,0.6496162,108120.0,108110.0,0.42500114]
[1751236281769,0.44593275,108120.0,108110.0,0.3608]
[1751236282764,0.44593275,108120.0,108110.0,0.5087629]
[1751236282966,0.44593275,108120.0,108110.0,0.3608]
[1751236283173,0.44593275,108120.0,108110.0,0.5087629]
[1751236283561,0.2422493,108120.0,108110.0,0.5087629]
[1751236283766,0.44593275,108120.0,108110.0,0.3608]
[1751236284373,0.44593275,108120.0,108110.0,0.5087629]
[1751236284572,0.44593275,108120.0,108110.0,0.3608]
[1751236287776,0.2422493,108120.0,108110.0,0.3608]
[1751236287976,0.44593275,108120.0,108110.0,0.3608]
[1751236289573,0.6496162,108120.0,108110.0,0.3608]
[1751236289778,0.147963,108110.0,108100.0,1.09913596]
[1751236289979,0.41624645,108110.0,108100.0,1.18401266]
[1751236290368,0.41624645,108110.0,108100.0,1.03603596]
[1751236291979,0.41624645,108110.0,108100.0,1.18401256]
[1751236292277,0.41624645,108110.0,108100.0,1.03603596]
[1751236292484,0.41624645,108110.0,108100.0,1.18401266]
[1751236292980,0.41624645,108110.0,108100.0,0.55333266]
[1751236293280,0.41624645,108110.0,108100.0,1.18253266]
[1751236293979,0.41624645,108110.0,108100.0,1.21333266]
[1751236296283,0.41624645,108110.0,108100.0,1.21332724]
[1751236297278,0.41624645,108110.0,108100.0,0.40535054]
[1751236297485,0.41624645,108110.0,108100.0,1.03291054]
[1751236298680,0.41624645,108110.0,108100.0,0.40535054]
[1751236298881,0.41624645,108110.0,108100.0,1.03231054]
[1751236299085,0.41624645,108110.0,108100.0,0.40535054]
[1751236299283,0.41624645,108110.0,108100.0,0.38829926]
[1751236299583,0.42536341,108110.0,108100.0,0.38829926]
[1751236299778,0.42536341,108110.0,108100.0,0.3138]
[1751236301186,0.1479766,108100.0,108090.0,1.01449926]
[1751236301391,0.44636005,108100.0,108090.0,1.01449926]
[1751236301586,0.80716005,108100.0,108090.0,0.65353926]